fUST/lending_fUST_20240527
["ID","MTS","AMOUNT","RATE_DAILY","PERIOD"]
[327982512,1716739553145,-163.345509,0.00019638,2]
[327982513,1716739553166,-930.19209826,0.0001976,2]
[327982521,1716739635097,-154.82968734,0.0001976,2]
[327982522,1716739635117,-154.82968734,0.0001976,2]
[327982523,1716739635138,-4795.81378884,0.0001976,2]
[327982524,1716739635158,-189.78764496,0.000199,2]
[327982525,1716739635178,-181.11191058,0.0002,2]
[327982526,1716739635199,-500.37830641,0.0002,2]
[327982527,1716739635219,-1143.89970046,0.0002,2]
[327982528,1716739635237,-155.9194334,0.00020912,2]
[327982529,1716739635261,-154.83980144,0.00020912,2]
[327982530,1716739635280,-175.72514253,0.00020912,2]
[327982531,1716739635301,-3643.43404926,0.00020913,2]
[327982532,1716739635322,-155.00680195,0.00020913,2]
[327982533,1716739635342,-155.23195427,0.00020913,2]
[327982534,1716739635362,-3981.96955357,0.00021,2]
[327982535,1716739635382,-726.324148,0.000215,2]
[327982536,1716739635404,-1716.2069914,0.00021918,2]
[327982537,1716739635423,-166.666666,0.00021918,2]
[327982538,1716739635442,-335.0,0.00022,2]
[327982539,1716739635462,-335.0,0.00022192,2]
[327982540,1716739635481,-151.0,0.00022393,3]
[327982541,1716739635501,-151.0,0.00022393,3]
[327982542,1716739635522,-166.666666,0.00022431,2]
[327982543,1716739635649,-166.666666,0.00022944,2]
[327982544,1716739635675,-335.0,0.00023014,2]
[327982545,1716739635697,-151.0,0.00023097,3]
[327982546,1716739635716,-151.0,0.00023097,3]
[327982547,1716739635735,-166.666666,0.00023456,2]
[327982548,1716739635755,-151.0,0.00023801,5]
[327982549,1716739635776,-151.0,0.00023801,5]
[327982550,1716739635801,-166.666666,0.00023969,2]
[327982551,1716739635824,-187.39912452,0.00024,2]
[327982552,1716739635843,-339.0,0.00024164,2]
[327982553,1716739635866,-372.432365,0.00024384,2]
[327982554,1716739635888,-377.567635,0.00024384,2]
[327982555,1716739635912,-166.666666,0.00024482,2]
[327982556,1716739635933,-3011.02527564,0.00024626,2]
[327982557,1716739635955,-13375.73791579,0.00025,2]
[327982558,1716739635975,-761.19376137,0.00025,2]
[327982559,1716739636001,-456.67881276,0.00025,2]
[327982560,1716739636020,-155.05153825,0.00025,2]
[327982561,1716739636040,-280.06085958,0.00025,2]
[327982562,1716739636060,-401.16149513,0.00025,2]
[327982563,1716739636079,-174.77770949,0.00025,2]
[327982564,1716739636101,-150.83408251,0.00025161,7]
[327982565,1716739636121,-1126.77848638,0.00025399,2]
[327982566,1716739636142,-150.83408251,0.00025675,4]
[327982567,1716739636162,-335.0,0.00025775,2]
[327982568,1716739636181,-150.83408251,0.00026199,2]
[327982569,1716739636204,-420.299999,0.000266,2]
[327982570,1716739636223,-152.002,0.00027147,2]
[327982571,1716739636243,-152.002,0.00027147,2]
[327982572,1716739636263,-161.498,0.00027218,2]
[327982573,1716739636283,-4227.93462558,0.0002722,2]
[327982574,1716739636302,-335.0,0.00027386,2]
[327982575,1716739636323,-486.04,0.0002749,3]
[327982576,1716739636345,-17967.08930887,0.000275,2]
[327982577,1716739636368,-300.0,0.000276,2]
[327982578,1716739636387,-335.0,0.00027616,2]
[327982579,1716739636407,-153.0,0.00027718,2]
[327982580,1716739636426,-153.0,0.00027718,2]
[327982581,1716739636450,-204.7013805,0.00027718,2]
[327982582,1716739636469,-306.0,0.00027718,2]
[327982583,1716739636489,-153.0,0.00027718,2]
[327982584,1716739636508,-153.0,0.00027718,2]
[327982585,1716739636528,-153.0,0.00027718,2]
[327982586,1716739636548,-153.0,0.00027718,2]
[327982587,1716739636567,-408.6554451,0.00027718,2]
[327982588,1716739636586,-151.0,0.0002799,2]
[327982589,1716739636606,-151.0,0.0002799,2]
[327982590,1716739636626,-188.963643,0.0002799,2]
[327982591,1716739636646,-188.963643,0.0002799,2]
[327982592,1716739636666,-151.0,0.0002799,2]
[327982593,1716739636686,-151.0,0.0002799,2]
[327982594,1716739636709,-151.0,0.0002799,2]
[327982595,1716739636730,-308.409698,0.0002799,2]
[327982596,1716739636750,-308.409698,0.0002799,2]
[327982597,1716739636771,-850.21012363,0.00028,2]
[327982598,1716739636792,-154.87609912,0.00028,2]
[327982599,1716739636813,-425.78665309,0.00028,2]
[327982600,1716739636836,-151.0,0.00028,2]
[327982601,1716739636857,-151.0,0.00028,2]
[327982602,1716739636878,-151.0,0.00028,2]
[327982603,1716739636900,-151.0,0.00028,2]
[327982604,1716739636924,-188.963643,0.00028,2]
[327982605,1716739636946,-188.963643,0.00028,2]
[327982606,1716739636967,-151.0,0.00028,2]
[327982607,1716739636988,-151.0,0.00028,2]
[327982608,1716739637009,-151.0,0.00028,2]
[327982609,1716739637031,-308.409698,0.00028,2]
[327982610,1716739637052,-308.409698,0.00028,2]
[327982611,1716739637074,-4524.59865931,0.00028,2]
[327982612,1716739637464,-7430.22856463,0.00028,2]
[327982614,1716739651172,-155.11383159,0.0001976,2]
[327982615,1716739651192,-28.01847974,0.00020911,2]
[327982630,1716739748106,-205.70529823,0.0001976,2]
[327982631,1716739748125,-181.11191058,0.0002,2]
[327982632,1716739748145,-1143.89970046,0.00020913,2]
[327982633,1716739748165,-3981.96955357,0.00021,2]
[327982634,1716739748186,-187.39912452,0.00024,2]
[327982635,1716739748208,-391.310746,0.00024384,2]
[327982636,1716739748230,-456.67881276,0.00025,2]
[327982637,1716739748251,-401.16149513,0.00025,2]
[327982638,1716739748270,-13293.01811875,0.00025,2]
[327982644,1716739773100,-181.11191058,0.0002,2]
[327982645,1716739773122,-1143.89970046,0.00020913,2]
[327982646,1716739773143,-3981.96955357,0.00021,2]
[327982647,1716739773165,-187.39912452,0.00024,2]
[327982648,1716739773186,-82.71979704,0.00025,2]
[327982649,1716739773208,-280.06085958,0.00025,2]
[327982650,1716739773229,-761.19376137,0.00025,2]
[327982651,1716739773250,-174.77770949,0.00025,2]
[327982652,1716739773270,-456.67881276,0.00025,2]
[327982653,1716739773410,-401.16149513,0.00025,2]
[327982655,1716739785156,174.77770949,0.00025,2]
[327982657,1716739785467,1143.89970046,0.00020913,2]
[327982658,1716739789520,13375.73791579,0.00025,2]
[327982659,1716739790139,456.67881276,0.00025,2]
[327982660,1716739790229,761.19376137,0.00025,2]
[327982661,1716739792151,3981.96955357,0.00025,2]
[327982662,1716739792204,230.89302745,0.0002,2]
[327982663,1716739792246,280.06085958,0.00025,2]
[327982664,1716739794226,401.16149513,0.00025,2]
[327982667,1716739803180,174.77770949,0.00025,2]
[327982673,1716739807527,13375.73791579,0.00025,2]
[327982679,1716739808237,494.58527663,0.00025,2]
[327982821,1716739838004,-3640.6656,0.00020912,2]
[327982825,1716739838062,-28755.96963616,0.00020912,2]
[327982826,1716739838073,-1143.89970046,0.00020913,2]
[327982827,1716739838082,-266.60848474,0.00025,2]
[327982828,1716739838090,-456.67881276,0.00025,2]
[327982829,1716739838100,-368.82218075,0.00025,2]
[327982830,1716739838107,-3981.96955357,0.00025,2]
[327982831,1716739838115,-237.28136015,0.00025,2]
[327982832,1716739838124,-13375.73791579,0.00025,2]
[327982833,1716739838133,-751.18565758,0.000259,2]
[327982834,1716739838142,-300.0,0.000276,2]
[327982835,1716739838151,-221.83484626,0.00028,2]
[327982836,1716739838158,-154.82968734,0.00028,2]
[327982837,1716739838166,-8045.17277606,0.00028,2]
[327982838,1716739838174,-194.09920319,0.00028352,2]
[327982839,1716739838180,-154.22351153,0.000284,2]
[327982840,1716739838189,-636.41936053,0.00028452,2]
[327982841,1716739838198,-4225.96705054,0.0002847,2]
[327982842,1716739838207,-151.0,0.0002848,2]
[327982843,1716739838215,-151.0,0.0002848,2]
[327982844,1716739838225,-173.741279,0.0002848,2]
[327982845,1716739838233,-151.0,0.0002848,2]
[327982846,1716739838242,-151.0,0.0002848,2]
[327982847,1716739838251,-151.0,0.0002849,2]
[327982848,1716739838258,-429.010281,0.0002849,2]
[327982849,1716739838267,-429.010281,0.0002849,2]
[327982850,1716739838275,-151.0,0.0002849,2]
[327982851,1716739838283,-151.0,0.0002849,2]
[327982852,1716739838291,-238.674368,0.0002849,2]
[327982853,1716739838300,-184.294571,0.0002849,2]
[327982854,1716739838309,-151.0,0.0002849,2]
[327982855,1716739838319,-151.0,0.0002849,2]
[327982856,1716739838327,-151.0,0.0002849,2]
[327982857,1716739838334,-152.077392,0.0002849,2]
[327982858,1716739838342,-151.0,0.0002849,2]
[327982859,1716739838350,-151.0,0.0002849,2]
[327982860,1716739838358,-151.0,0.0002849,2]
[327982861,1716739838366,-151.0,0.0002849,2]
[327982862,1716739838375,-15922.17,0.0002849,3]
[327982863,1716739838384,-13268.47,0.0002849,3]
[327982864,1716739838393,-24024.67294059,0.000285,2]
[327982865,1716739838405,-21321.32705941,0.000285,2]
[327982866,1716739838414,-151.0,0.000285,2]
[327982867,1716739838423,-172.04244369,0.000285,2]
[327982868,1716739838435,-16.92119931,0.000285,2]
[327982869,1716739838445,-188.963643,0.000285,2]
[327982870,1716739838456,-249.567945,0.000285,2]
[327982871,1716739838466,-15.86406896,0.000285,2]
[327982879,1716739841218,-135.13593104,0.000285,2]
[327982880,1716739841227,-151.0,0.000285,2]
[327982881,1716739841237,-151.0,0.000285,2]
[327982882,1716739841247,-151.0,0.000285,2]
[327982883,1716739841256,-241.681376,0.000285,2]
[327982884,1716739841265,-429.010281,0.000285,2]
[327982885,1716739841275,-429.010281,0.000285,2]
[327982886,1716739841284,-151.0,0.000285,2]
[327982887,1716739841293,-151.0,0.000285,2]
[327982888,1716739841302,-151.0,0.000285,2]
[327982889,1716739841312,-151.0,0.000285,2]
[327982890,1716739841321,-151.0,0.000285,2]
[327982891,1716739841330,-151.0,0.000285,2]
[327982892,1716739841340,-151.0,0.000285,2]
[327982893,1716739841349,-151.0,0.000285,2]
[327982894,1716739841359,-151.0,0.000285,2]
[327982895,1716739841369,-620.87689871,0.00028514,2]
[327982896,1716739841381,-239.9192948,0.00028552,2]
[327982897,1716739841391,-153.0,0.00028552,2]
[327982898,1716739841400,-153.0,0.00028552,2]
[327982899,1716739841409,-153.0,0.00028552,2]
[327982900,1716739841418,-300.0,0.000286,2]
[327982901,1716739841427,-154.22351153,0.0002865,2]
[327982902,1716739841437,-154.22351153,0.000289,2]
[327982903,1716739841447,-600.0,0.00028932,2]
[327982904,1716739841457,-151.0,0.00028979,2]
[327982905,1716739841466,-151.0,0.00028979,2]
[327982906,1716739841476,-220.320755,0.00028979,2]
[327982907,1716739841486,-11157.42,0.00028979,3]
[327982908,1716739841496,-5284.4560249,0.00028989,2]
[327982909,1716739841505,-335.0,0.00028997,2]
[327982910,1716739841515,-2326.7482059,0.00028998,2]
[327982911,1716739841524,-155.44993628,0.00028998,2]
[327982912,1716739841534,-392.26053863,0.00028999,2]
[327982913,1716739841544,-13893.51636511,0.00029,2]
[327982967,1716739842970,-0.01398217,0.00029,2]
[327983039,1716739848074,-32853.31404892,0.00029,2]
[327983040,1716739848113,-687.0,0.00029,2]
[327983041,1716739874331,1583.07627159,9.999e-05,2]
[327983042,1716739876786,397.11831143,9.999e-05,2]
[327983043,1716739876945,519.86118289,9.999e-05,2]
[327983044,1716739892682,1577.03154295,9.999e-05,2]
[327983046,1716739950431,690.95275409,9.999e-05,2]
[327983047,1716739952891,720.72103566,9.999e-05,2]
[327983048,1716739959593,1901.804382,9.998e-05,2]
[327983093,1716740627396,916.97949432,9.999e-05,2]
[327983105,1716740748139,-163.345509,0.00019376,2]
[327983106,1716740748160,-443.7014571,0.00019977,2]
[327983132,1716740946111,-9569.20149698,0.0001997,2]
[327983133,1716740946132,-1624.54251943,0.00019971,2]
[327983134,1716740956085,-6277.55297231,0.00019971,2]
[327983135,1716740956109,-1143.89970046,0.0002,2]
[327983136,1716740956131,-1351.93473586,0.00020906,2]
[327983137,1716740956153,-527.75391758,0.00020906,4]
[327983138,1716740956174,-704.13472746,0.00020907,2]
[327983139,1716740956195,-281.36801284,0.00020908,2]
[327983140,1716740956214,-960.56859885,0.00020911,2]
[327983141,1716740956233,-4769.27929432,0.00020912,2]
[327983145,1716740970111,-500.79043839,0.000189,2]
[327983146,1716740970130,-3518.53740299,0.0001997,2]
[327983147,1716740970150,-620.10218604,0.00020912,2]
[327983148,1716740970169,-155.29385504,0.00020912,2]
[327983149,1716740970190,-625.18784984,0.00020912,2]
[327983150,1716740970214,-1143.89970046,0.00020912,2]
[327983151,1716740970234,-527.39256429,0.00020912,4]
[327983152,1716740970256,-1700.381402,0.000215,2]
[327983153,1716740970276,-166.666666,0.00021918,2]
[327983155,1716740970296,-232.57569195,0.00022,2]
[327983156,1716740970320,-166.666666,0.00022431,2]
[327983157,1716740972180,3016.71528292,0.00020912,2]
[327983158,1716740972248,1185.48852392,0.00020912,2]
[327983161,1716740989652,1143.89970046,0.00020913,2]
[327983163,1716741011418,1143.89970046,0.00020913,2]
[327983164,1716741027399,1085.35620547,0.00020913,2]
[327983250,1716741038229,-151.0,0.00022604,3]
[327983252,1716741038238,-151.0,0.00023289,5]
[327983254,1716741038247,-500.79043839,0.000239,2]
[327983256,1716741038256,-378.254791,0.00024384,2]
[327983258,1716741038266,-371.745209,0.00024384,2]
[327983260,1716741038275,-166.666666,0.00024502,2]
[327983262,1716741038284,-156.72411071,0.000249,2]
[327983264,1716741038293,-571.61878428,0.00025,2]
[327983266,1716741038305,-749.36343016,0.00025,2]
[327983271,1716741038354,-2660.98733913,0.00025,2]
[327983273,1716741038364,-761.19376137,0.00025,2]
[327983275,1716741038374,-456.67881276,0.00025,2]
[327983277,1716741038383,-13375.73791579,0.00025,2]
[327983279,1716741038392,-150.83408251,0.00025066,7]
[327983281,1716741038403,-166.666666,0.0002517,2]
[327983283,1716741038412,-150.83408251,0.00025577,4]
[327983284,1716741038425,-166.666666,0.00025838,2]
[327983286,1716741038434,-150.83408251,0.00026099,2]
[327983288,1716741038444,-166.666666,0.00026506,2]
[327983290,1716741038453,-169.83680273,0.00026542,2]
[327983292,1716741038462,-156.7241107,0.0002715,2]
[327983294,1716741038471,-166.666666,0.00027174,2]
[327983296,1716741038481,-237.0,0.000276,2]
[327983298,1716741038495,-166.666666,0.00027842,2]
[327983299,1716741038504,-153.0,0.0002789,2]
[327983301,1716741038514,-153.0,0.0002789,2]
[327983303,1716741038523,-153.0,0.0002789,2]
[327983305,1716741038533,-175.721079,0.0002789,2]
[327983307,1716741038543,-350.2232163,0.0002789,2]
[327983309,1716741038552,-153.0,0.0002789,2]
[327983311,1716741038561,-153.0,0.0002789,2]
[327983313,1716741038573,-291.7186327,0.0002789,2]
[327983315,1716741038582,-153.0,0.0002789,2]
[327983317,1716741038591,-153.0,0.0002789,2]
[327983318,1716741038601,-188.49461954,0.00028,2]
[327983320,1716741038610,-221.83484626,0.00028,2]
[327983322,1716741038619,-169.83680273,0.00028214,2]
[327983324,1716741038628,-300.0,0.000286,2]
[327983326,1716741038637,-153.0,0.00028712,2]
[327983327,1716741038647,-291.7186327,0.00028712,2]
[327983329,1716741038657,-291.7186327,0.00028712,2]
[327983331,1716741038667,-291.7186327,0.00028712,2]
[327983333,1716741038677,-500.79043839,0.000289,2]
[327983335,1716741038686,-600.0,0.00028932,2]
[327983337,1716741038695,-150.83408251,0.00028999,2]
[327983339,1716741038705,-250.21564279,0.00028999,2]
[327983341,1716741038716,-2574.1556038,0.00029,2]
[327983343,1716741038725,-2505.35,0.00029,2]
[327983345,1716741038734,-591.0,0.00029,2]
[327983347,1716741038743,-600.0,0.00029233,2]
[327983348,1716741038753,-300.0,0.00029298,2]
[327983350,1716741038762,-2177.98605443,0.000294,2]
[327983352,1716741038771,-156.7241107,0.000294,2]
[327983354,1716741038780,-1000.0,0.00029431,2]
[327983356,1716741038789,-1000.0,0.00029462,2]
[327983358,1716741038798,-301.66816502,0.00029486,4]
[327983360,1716741038807,-11057.06,0.00029488,3]
[327983362,1716741038817,-183.9,0.00029488,3]
[327983364,1716741038826,-7678.52,0.00029489,3]
[327983366,1716741038836,-9214.22,0.0002949,3]
[327983368,1716741038845,-316.38176035,0.00029498,2]
[327983370,1716741038854,-221.34983062,0.00029498,2]
[327983371,1716741038863,-1579.76633177,0.00029498,2]
[327983373,1716741038872,-187.74059143,0.00029498,2]
[327983375,1716741038881,-155.6150163,0.00029498,2]
[327983377,1716741038890,-517.35254746,0.00029498,2]
[327983378,1716741038899,-306.07973433,0.00029498,2]
[327983379,1716741038908,-155.24621265,0.00029498,2]
[327983380,1716741038918,-156.6117065,0.00029498,2]
[327983381,1716741038927,-155.23411255,0.00029498,2]
[327983382,1716741038936,-174.24732678,0.00029498,2]
[327983383,1716741038945,-266.42873188,0.00029498,2]
[327983384,1716741038955,-20019.01454802,0.00029498,2]
[327983385,1716741038964,-297.45032814,0.00029498,2]
[327983386,1716741038973,-2678.29668145,0.00029498,2]
[327983387,1716741038982,-519.6192704,0.00029498,2]
[327983388,1716741038991,-164.40971405,0.00029498,2]
[327983389,1716741039001,-923.34785003,0.00029498,2]
[327983390,1716741039011,-174.77770949,0.00029498,2]
[327983391,1716741039020,-4566.48524707,0.00029499,2]
[327983392,1716741039033,-15.0789196,0.00029499,2]
[327983512,1716741041612,-1000.0,0.00029296,2]
[327983513,1716741041622,-1000.0,0.00029367,2]
[327983514,1716741041632,-1000.0,0.00029418,2]
[327983515,1716741041641,-1000.0,0.00029467,2]
[327983516,1716741041651,-1000.0,0.00029481,2]
[327983517,1716741041660,-1074.41345422,0.00029499,2]
[327983518,1716741041670,-155.06972698,0.00029499,2]
[327983519,1716741041679,-1897.58698072,0.00029499,2]
[327983520,1716741041688,-194.86360978,0.00029499,2]
[327983521,1716741041698,-1496.05848101,0.00029499,2]
[327983522,1716741041707,-1405.61526917,0.00029499,2]
[327983523,1716741041716,-513.4844886,0.00029499,2]
[327983524,1716741041725,-2136.91173092,0.00029499,2]
[327983525,1716741041735,-208.30447732,0.00029499,2]
[327983526,1716741041744,-155.28923623,0.00029499,2]
[327983527,1716741041754,-312.3116045,0.000295,120]
[327983528,1716741041765,-4704.21025672,0.000295,2]
[327983529,1716741041776,-1088.1312,0.000295,2]
[327983553,1716741043985,-551.73,0.0002949,3]
[327983554,1716741044088,-513.68626296,0.000295,2]
[327983559,1716741045763,509.26614717,9.945e-05,2]
[327983562,1716741064294,3981.96955357,0.00021,2]
[327983563,1716741080204,3981.96955357,0.00021,2]
[327983564,1716741098206,1588.70025747,0.00021,2]
[327983571,1716741938139,-250.0,0.00019881,2]
[327983572,1716741938159,-62.25759443,0.0002,2]
[327983574,1716742046101,-118.85431615,0.0002,2]
[327983575,1716742046242,-431.99224058,0.0002,2]
[327983576,1716742046265,-412.35725327,0.00020109,2]
[327983577,1716742159090,-163.345509,0.0002011,2]
[327983578,1716742159114,-155.03051623,0.00021,2]
[327983579,1716742159135,-1972.85306053,0.00021,2]
[327983580,1716742165129,-2009.11649304,0.00021,2]
[327983581,1716742165151,-1133.84065285,0.00021,2]
[327983582,1716742165172,-5423.675852,0.000215,2]
[327983583,1716742166485,320.27397558,0.000194,2]
[327983584,1716742168103,-166.666666,0.00021918,2]
[327983585,1716742168126,-6685.7350983,0.00021918,2]
[327983586,1716742168147,-217.27914948,0.00022124,2]
[327983587,1716742168167,-166.666666,0.00022431,2]
[327983592,1716742228232,166.666666,0.00022513,2]
[327983621,1716742233364,-7027.10960867,0.0002255,2]
[327983666,1716742238596,-625.44716545,0.0002255,2]
[327983668,1716742238608,-5328.45926754,0.0002255,2]
[327983669,1716742238730,-2797.3476711,0.0002255,2]
[327983671,1716742238739,-220.8511182,0.00022613,2]
[327983672,1716742238748,-151.0,0.00022706,3]
[327983673,1716742238757,-151.0,0.00022706,3]
[327983674,1716742238766,-1174.25368989,0.00023,2]
[327983675,1716742238775,-4695.7305307,0.00023,2]
[327983676,1716742238784,-166.666666,0.00023127,2]
[327983677,1716742238793,-151.0,0.00023382,5]
[327983679,1716742238803,-166.666666,0.00023741,2]
[327983681,1716742238812,-151.0,0.00024057,5]
[327983682,1716742238821,-220.85111816,0.00024088,2]
[327983684,1716742238830,-166.666666,0.00024355,2]
[327983686,1716742238840,-396.842051,0.00024384,2]
[327983687,1716742238852,-353.157949,0.00024384,2]
[327983688,1716742238872,-320.27397558,0.000244,2]
[327983689,1716742238886,-380.0,0.00024658,2]
[327983690,1716742238905,-151.0,0.00024733,5]
[327983691,1716742238922,-200.0,0.000248,3]
[327983692,1716742238941,-958.85437399,0.00024813,2]
[327983693,1716742238959,-166.666666,0.00024968,2]
[327983694,1716742238976,-456.67881276,0.00025,2]
[327983695,1716742238992,-761.19376137,0.00025,2]
[327983696,1716742239009,-190.9757951,0.00025,2]
[327983697,1716742239021,-4997.09854453,0.00025,2]
[327983698,1716742239037,-13375.73791579,0.00025,2]
[327983699,1716742239054,-401.16149513,0.00025,2]
[327983700,1716742239072,-151.0,0.00025408,5]
[327983701,1716742239090,-220.85111816,0.00025563,2]
[327983702,1716742239102,-166.666666,0.00025582,2]
[327983703,1716742239116,-636.9427187,0.00026054,2]
[327983704,1716742239134,-151.0,0.00026084,5]
[327983705,1716742239147,-279.1103904,0.00026548,2]
[327983706,1716742239162,-367.8,0.00026839,3]
[327983707,1716742239176,-220.85111816,0.00027038,2]
[327983708,1716742239190,-3702.99,0.0002799,3]
[327983709,1716742239205,-5781.6,0.0002799,3]
[327983710,1716742239219,-4818.0,0.0002799,3]
[327983711,1716742239232,-4015.0,0.0002799,3]
[327983712,1716742239246,-192.50010471,0.00027999,2]
[327983713,1716742239259,-6658.48887919,0.00028,7]
[327983714,1716742239272,-221.83484626,0.00028,2]
[327983715,1716742239285,-33864.07589936,0.00028,4]
[327983814,1716742254390,662.19562205,0.00022431,2]
[327983818,1716742502121,18662.89454698,9.999e-05,2]
[327983819,1716742542601,3634.41600598,9.999e-05,2]
[327983820,1716742556440,514.00105482,9.999e-05,2]
[327983821,1716742558600,809.62031102,9.999e-05,2]
[327983822,1716742590165,1022.30616127,9.999e-05,2]
[327983823,1716742590889,3891.02210502,9.999e-05,2]
[327983824,1716742631155,9345.26990203,9.999e-05,2]
[327983825,1716742712996,154.89812727,9.999e-05,2]
[327983826,1716742713131,19264.17315278,9.999e-05,2]
[327983827,1716742720568,299.64243626,9.999e-05,2]
[327983828,1716742729134,19264.17315278,9.999e-05,2]
[327983829,1716742733008,201.66131489,9.999e-05,2]
[327983830,1716742745897,299.64243626,9.999e-05,2]
[327983831,1716742749140,17636.27929264,9.999e-05,2]
[327983832,1716742749167,1627.89386014,9.999e-05,2]
[327983833,1716742761877,299.53558751,9.999e-05,2]
[327983834,1716742765155,15607.98778572,9.999e-05,2]
[327983836,1716742844850,150.0,0.0001,7]
[327983837,1716743030467,403.88807297,9.999e-05,2]
[327983838,1716743348198,-543.74619195,0.00017964,2]
[327983839,1716743348219,-8621.38480644,0.00017964,2]
[327983840,1716743348265,-947.81669054,0.00017964,2]
[327983841,1716743348286,-7902.09549174,0.00017965,2]
[327983842,1716743348309,-59454.89559488,0.00017965,2]
[327983843,1716743348331,-11069.05609445,0.00017966,2]
[327983844,1716743348353,-13058.1587264,0.00017967,2]
[327983845,1716743348376,-192.84483918,0.00018782,2]
[327983846,1716743348397,-836.12249757,0.00018964,2]
[327983847,1716743348418,-820.30862122,0.0001897,2]
[327983848,1716743348438,-329.58928643,0.00018974,2]
[327983849,1716743348458,-163.345509,0.00019178,2]
[327983850,1716743348482,-190.06506775,0.0001999,2]
[327983851,1716743348503,-2116.65624076,0.00019994,2]
[327983852,1716743348523,-155.29385504,0.00019994,2]
[327983853,1716743348544,-217.27914948,0.00019995,2]
[327983854,1716743348564,-181.11191058,0.0002,2]
[327983855,1716743348584,-527.75391758,0.0002,4]
[327983856,1716743348608,-1143.89970046,0.0002,2]
[327983857,1716743348629,-414.72719987,0.0002,2]
[327983858,1716743348650,-1351.93473586,0.0002,2]
[327983859,1716743348671,-704.13472746,0.00020912,2]
[327983860,1716743348693,-1583.07627159,0.00020912,2]
[327983861,1716743348715,-281.36801284,0.00020912,2]
[327983862,1716743348737,-3000.0,0.000215,2]
[327983863,1716743348758,-3000.0,0.0002151,2]
[327983864,1716743348780,-3000.0,0.0002152,2]
[327983865,1716743348801,-3000.0,0.0002153,2]
[327983866,1716743348822,-192.84483917,0.00021533,2]
[327983867,1716743348844,-3000.0,0.0002154,2]
[327983868,1716743348866,-3000.0,0.0002155,2]
[327983869,1716743348889,-3000.0,0.0002156,2]
[327983870,1716743348910,-4197.986002,0.0002157,2]
[327983871,1716743348930,-10000.0,0.00021918,2]
[327983872,1716743348951,-166.666666,0.00021918,2]
[327983873,1716743348972,-159.8994937,0.00022,2]
[327983874,1716743348993,-2743.14682766,0.000223,6]
[327983875,1716743349014,-166.666666,0.00022431,2]
[327983876,1716743349035,-156.03182295,0.00022431,2]
[327983877,1716743349055,-286.04727348,0.00022431,2]
[327983878,1716743349076,-2763.63988445,0.00022431,10]
[327983879,1716743349099,-225.4858649,0.00022431,2]
[327983880,1716743349120,-205.70529823,0.00022431,2]
[327983881,1716743349141,-3981.96955357,0.00022431,2]
[327983882,1716743349162,-542.5560979,0.0002245,2]
[327983883,1716743349183,-151.0,0.00022678,3]
[327983884,1716743349204,-166.666666,0.00022944,2]
[327983885,1716743349226,-4697.14874934,0.00023,2]
[327983886,1716743349249,-151.0,0.00023356,5]
[327983887,1716743349270,-166.666666,0.00023456,2]
[327983888,1716743349290,-166.666666,0.00023969,2]
[327983889,1716743349312,-187.39912452,0.00024,2]
[327983890,1716743349334,-151.0,0.00024034,5]
[327983891,1716743349354,-192.84483917,0.00024284,2]
[327983892,1716743349376,-680.181636,0.00024384,2]
[327983893,1716743349397,-174.54591,0.00024384,2]
[327983894,1716743349418,-166.666666,0.00024482,2]
[327983895,1716743349438,-401.16149513,0.00025,2]
[327983896,1716743349460,-13375.73791579,0.00025,2]
[327983897,1716743349480,-174.77770949,0.00025,2]
[327983898,1716743349501,-280.06085958,0.00025,2]
[327983899,1716743349522,-151.0,0.00025,2]
[327983900,1716743349543,-151.0,0.00025,2]
[327983901,1716743349567,-163.345509,0.00025426,2]